bitfinex/quotes_BTCUSD_20240629
["timestamp","ask_amount","ask_price","bid_price","bid_amount"]
[1719661652231,1.40430985,61278.0,61277.0,0.46682842]
[1719661652705,1.387336,61278.0,61277.0,0.46682842]
[1719661652935,1.40430985,61278.0,61277.0,0.46682842]
[1719661654581,1.13285463,61278.0,61277.0,0.46682842]
[1719661655072,1.13185463,61278.0,61277.0,0.44082842]
[1719661655301,1.13285463,61278.0,61277.0,0.44882842]
[1719661655562,1.13285463,61278.0,61277.0,0.45582842]
[1719661656044,1.11588078,61278.0,61277.0,0.45582842]
[1719661656242,1.1328546,61278.0,61277.0,0.45582842]
[1719661656528,1.2328546,61278.0,61277.0,0.45582842]
[1719661661030,1.69062382,61278.0,61277.0,0.45582842]
[1719661661294,1.57368982,61278.0,61277.0,0.45582842]
[1719661663424,1.45820182,61278.0,61277.0,0.45582842]
[1719661663617,1.34473482,61278.0,61277.0,0.45582842]
[1719661664329,1.33073482,61278.0,61277.0,0.45582842]
[1719661664799,1.29473482,61278.0,61277.0,0.45582842]
[1719661665541,1.277761,61278.0,61277.0,0.45582842]
[1719661665785,1.29473476,61278.0,61277.0,0.45582842]
[1719661666014,1.24564276,61278.0,61277.0,0.45582842]
[1719661668866,1.228669,61278.0,61277.0,0.45582842]
[1719661669136,1.24564276,61278.0,61277.0,0.45582842]
[1719661669795,1.19344676,61278.0,61277.0,0.45582842]
[1719661670568,1.15444676,61278.0,61277.0,0.45582842]
[1719661672171,1.15444675,61278.0,61277.0,0.02452842]
[1719661672408,1.15444675,61278.0,61277.0,0.015]
[1719661672644,1.15444675,61278.0,61277.0,0.02503267]
[1719661674137,1.15444675,61278.0,61277.0,0.01003267]
[1719661674343,1.15444675,61278.0,61275.0,0.1897]
[1719661674561,0.0763,61276.0,61275.0,0.1897]
[1719661675024,1.638379,61276.0,61275.0,0.1897]
[1719661675279,1.75535281,61276.0,61275.0,0.1897]
[1719661675521,1.75535281,61276.0,61275.0,0.36739032]
[1719661675727,1.75535281,61276.0,61275.0,0.36039032]
[1719661676189,1.75535281,61276.0,61275.0,0.1997]
[1719661676604,1.75535281,61276.0,61275.0,0.38189873]
[1719661676873,1.75535281,61276.0,61275.0,0.21120841]
[1719661677102,1.75535281,61276.0,61275.0,0.02150841]
[1719661677353,1.75535281,61276.0,61275.0,0.02850841]
[1719661677777,1.75535281,61276.0,61275.0,0.02150841]
[1719661678269,1.739379,61276.0,61275.0,0.19819873]
[1719661678508,1.67247086,61276.0,61275.0,0.19819873]
[1719661679456,0.58230186,61276.0,61275.0,0.19819873]
[1719661684003,0.565328,61276.0,61275.0,0.19650234]
[1719661684253,0.565328,61276.0,61275.0,0.195064]
[1719661684254,0.58230116,61276.0,61275.0,0.195064]
[1719661684508,0.565328,61276.0,61275.0,0.195064]
[1719661684726,0.58230116,61276.0,61275.0,0.195064]
[1719661686334,0.19427316,61276.0,61275.0,0.79180298]
[1719661687032,0.1773,61276.0,61275.0,0.79180298]
[1719661687737,0.0773,61276.0,61275.0,0.79180298]
[1719661688247,0.001,61276.0,61275.0,0.83480298]
[1719661688472,0.0773,61276.0,61275.0,0.83480298]
[1719661688696,0.0773,61276.0,61275.0,0.81480298]
[1719661688958,0.001,61276.0,61275.0,0.81480298]
[1719661689218,0.0773,61276.0,61275.0,0.81480298]
[1719661690190,0.503529,61276.0,61275.0,0.81480298]
[1719661690438,0.720634,61276.0,61275.0,0.81480298]
[1719661691866,0.7376065,61276.0,61275.0,0.81480298]
[1719661692333,0.6603065,61276.0,61275.0,0.81480298]
[1719661693030,0.7366065,61276.0,61275.0,0.81480298]
[1719661693753,0.73660718,61276.0,61275.0,0.81480298]
[1719661694723,0.73660718,61276.0,61275.0,0.62510298]
[1719661697773,0.73660718,61276.0,61275.0,0.38040298]
[1719661698228,0.73660718,61276.0,61275.0,0.35740298]
[1719661700019,0.73660742,61276.0,61275.0,0.35740298]
[1719661700695,0.73660742,61276.0,61275.0,0.02437368]
[1719661700917,0.73660742,61276.0,61270.0,0.17069032]
[1719661700918,0.02,61275.0,61270.0,0.17069032]
[1719661701121,0.02,61275.0,61271.0,0.17069032]
[1719661701122,0.02,61273.0,61271.0,0.17069032]
[1719661701333,1.522581,61272.0,61271.0,0.17069032]
[1719661701538,1.622581,61272.0,61271.0,0.17069032]
[1719661701746,0.4367,61270.0,61265.0,0.05017607]
[1719661701962,2.009014,61269.0,61266.0,0.3560293]
[1719661702139,0.0763,61267.0,61266.0,0.3560293]
[1719661702343,1.288762,61267.0,61266.0,0.18533898]
[1719661702546,1.288762,61267.0,61266.0,0.3560293]
[1719661702547,1.20573542,61267.0,61266.0,0.3560293]
[1719661702749,1.30573542,61267.0,61266.0,0.3560293]
[1719661703156,1.30573783,61267.0,61266.0,0.3600293]
[1719661703569,1.30573783,61267.0,61266.0,0.3610293]
[1719661704062,1.41941314,61267.0,61266.0,0.3670293]
[1719661704825,1.30673783,61267.0,61266.0,0.3670293]
[1719661705067,0.97776904,61267.0,61266.0,0.19633898]
[1719661705309,0.11797583,61267.0,61266.0,0.3670293]
[1719661705552,1.01886583,61267.0,61266.0,0.3670293]
[1719661706524,1.01886609,61267.0,61266.0,0.3670293]
[1719661707878,1.01886609,61267.0,61266.0,0.011]
[1719661707879,1.03886609,61267.0,61266.0,0.011]
[1719661708131,1.03886609,61267.0,61265.0,0.000924]
[1719661708132,0.02,61266.0,61265.0,0.000924]
[1719661708354,2.75436709,61266.0,61265.0,0.000924]
[1719661708612,2.58400409,61266.0,61265.0,0.01089055]
[1719661708867,2.58400409,61266.0,61263.0,0.17069032]
[1719661708868,0.02,61265.0,61261.0,0.17069032]
[1719661709107,0.02,61265.0,61263.0,0.17069032]
[1719661709108,0.0963,61264.0,61263.0,0.17069032]
[1719661709350,2.819299,61264.0,61263.0,0.17069032]
[1719661709558,1.957482,61264.0,61263.0,0.17069032]
[1719661709765,1.94223925,61264.0,61263.0,0.17069032]
[1719661710446,1.44807025,61264.0,61263.0,0.17869032]
[1719661711796,1.44707025,61264.0,61263.0,0.17069032]
[1719661712700,1.430092,61264.0,61263.0,0.17069032]
[1719661712875,1.44707016,61264.0,61263.0,0.17069032]
[1719661715788,1.430092,61264.0,61263.0,0.17069032]
[1719661716014,1.44707016,61264.0,61263.0,0.17069032]
[1719661717115,1.430092,61264.0,61263.0,0.17069032]
[1719661717333,1.44707016,61264.0,61263.0,0.17069032]
[1719661718263,1.44707016,61264.0,61262.0,0.17069032]
[1719661718478,2.502683,61263.0,61261.0,0.17069032]
[1719661718713,2.115823,61262.0,61261.0,0.17069032]
[1719661718939,1.426713,61262.0,61261.0,0.17069032]
[1719661719626,1.426713,61262.0,61261.0,0.1806915]
[1719661719847,1.332362,61262.0,61261.0,0.1806915]
[1719661720057,1.332362,61262.0,61261.0,0.1826915]
[1719661720260,1.34934016,61262.0,61261.0,0.1826915]
[1719661720492,1.31645316,61262.0,61261.0,0.1846915]
[1719661720705,1.31645316,61262.0,61261.0,0.17469032]
[1719661722429,1.31645323,61262.0,61261.0,0.17469032]
[1719661722867,1.299475,61262.0,61261.0,0.17469032]
[1719661723071,1.31645323,61262.0,61261.0,0.17469032]
[1719661723279,1.28045323,61262.0,61261.0,0.17469032]
[1719661723486,1.18685323,61262.0,61261.0,0.17469032]
[1719661723694,1.18685323,61262.0,61261.0,0.41879032]
[1719661724129,1.18685323,61262.0,61261.0,0.4287915]
[1719661724981,1.18685323,61262.0,61261.0,0.42875106]
[1719661729238,1.16865423,61262.0,61261.0,0.42875106]
[1719661729449,0.93821323,61262.0,61261.0,0.60815106]
[1719661730276,0.6622127,61262.0,61261.0,0.60815106]
[1719661730482,1.905456,61266.0,61261.0,0.60815106]
[1719661730659,0.0763,61262.0,61261.0,0.60815106]
[1719661730968,0.0763,61262.0,61261.0,0.59814988]
[1719661731108,0.0763,61262.0,61261.0,0.60815204]
[1719661731900,0.990047,61262.0,61261.0,0.60615204]
[1719661732530,1.090047,61262.0,61261.0,0.60615204]
[1719661732928,1.054047,61262.0,61261.0,0.60815204]
[1719661734002,1.054047,61262.0,61261.0,0.42875204]
[1719661737371,1.054047,61262.0,61261.0,0.18465204]
[1719661737590,1.054047,61262.0,61261.0,0.01400216]
[1719661737796,1.074047,61262.0,61261.0,0.18465204]
[1719661738010,0.02,61261.0,61258.0,0.2263]
[1719661738231,0.02,61261.0,61258.0,0.38863898]
[1719661738232,0.0763,61259.0,61258.0,0.38863898]
[1719661738646,0.0763,61259.0,61258.0,0.16233898]
[1719661738858,2.012235,61259.0,61258.0,0.16233898]
[1719661739281,1.492514,61259.0,61258.0,0.16433898]
[1719661739499,1.493514,61259.0,61258.0,0.17033898]
[1719661739724,1.313514,61259.0,61258.0,0.17033898]
[1719661739941,1.313514,61259.0,61258.0,0.16833898]
[1719661741907,1.313514,61259.0,61258.0,0.006]
[1719661741908,1.38455174,61259.0,61258.0,0.006]
[1719661742382,1.313514,61259.0,61258.0,0.006]
[1719661742593,1.314514,61259.0,61258.0,0.006924]
[1719661743657,0.1783,61259.0,61258.0,0.006924]
[1719661743861,2.718577,61259.0,61258.0,0.006924]
[1719661745338,2.717577,61259.0,61258.0,0.000924]
[1719661745544,2.719577,61259.0,61258.0,0.000924]
[1719661745976,2.718577,61259.0,61258.0,0.000924]
[1719661746846,2.720577,61259.0,61258.0,0.000924]
[1719661749283,2.740577,61259.0,61258.0,0.000924]
[1719661750136,2.720577,61259.0,61258.0,0.000924]
[1719661751235,2.740577,61259.0,61258.0,0.009084]
[1719661751663,2.720577,61259.0,61258.0,0.009084]
[1719661751880,2.945077,61259.0,61258.0,0.009084]
[1719661752088,2.965077,61259.0,61258.0,0.00902222]
[1719661752537,2.965077,61259.0,61258.0,0.01737985]
[1719661754046,2.740577,61259.0,61258.0,0.01737985]
[1719661759646,2.720577,61259.0,61258.0,0.01737985]
[1719661760730,2.740577,61259.0,61258.0,0.01737985]
[1719661762141,2.720577,61259.0,61258.0,0.02083225]
[1719661762359,2.740577,61259.0,61258.0,0.02083225]
[1719661765160,2.740577,61259.0,61258.0,0.00902222]
[1719661767814,2.740577,61259.0,61258.0,0.00896604]
[1719661769395,2.740577,61259.0,61249.0,0.04949043]
[1719661769396,0.4055,61252.0,61249.0,0.04949043]
[1719661769624,2.84251516,61259.0,61250.0,0.18533898]
[1719661769625,2.388635,61251.0,61250.0,0.18533898]
[1719661769851,0.1763,61251.0,61250.0,0.19623757]
[1719661770632,2.626738,61251.0,61250.0,0.18533898]
[1719661770869,0.912225,61251.0,61250.0,0.60763898]
[1719661771089,0.876858,61251.0,61250.0,0.60863898]
[1719661771316,0.876858,61251.0,61250.0,0.61953757]
[1719661771540,0.884858,61251.0,61250.0,0.61953757]
[1719661772444,0.884858,61251.0,61250.0,0.61853757]
[1719661772681,0.866858,61251.0,61250.0,0.61853757]
[1719661772914,0.872858,61251.0,61250.0,0.61853757]
[1719661773154,0.866858,61251.0,61250.0,0.61853757]
[1719661773605,0.870858,61251.0,61250.0,0.61853757]
[1719661773864,0.874858,61251.0,61250.0,0.61853757]
[1719661774304,0.870858,61251.0,61250.0,0.61853757]
[1719661774848,0.872858,61251.0,61250.0,0.61853757]
[1719661775058,0.1823,61251.0,61250.0,0.61853757]
[1719661775283,0.0823,61251.0,61250.0,0.61853757]
[1719661776594,0.0823,61251.0,61250.0,0.99083757]
[1719661776595,0.006,61251.0,61250.0,0.99083757]
[1719661776799,0.00084,61262.0,61261.0,0.49052]
[1719661777012,0.00084,61262.0,61261.0,1.15646244]
[1719661777231,0.00084,61262.0,61261.0,1.16776943]
[1719661778102,0.00384,61262.0,61261.0,1.16776943]
[1719661778308,0.00384,61262.0,61261.0,0.96824597]
[1719661778521,0.00384,61262.0,61261.0,0.98824597]
[1719661779443,0.00084,61262.0,61261.0,0.96824597]
[1719661779657,0.00184,61262.0,61261.0,0.97024597]
[1719661779869,0.00284,61262.0,61261.0,0.97924597]
[1719661780079,0.00284,61262.0,61261.0,0.97024597]
[1719661780307,0.00184,61262.0,61261.0,0.96824597]
[1719661780525,0.00384,61262.0,61261.0,0.98324597]
[1719661781593,0.00384,61262.0,61261.0,0.61094597]
[1719661783098,0.00384,61262.0,61261.0,0.18864597]
[1719661792792,0.02,61267.0,61261.0,0.18864597]
[1719661793057,0.02,61268.0,61263.0,0.08130346]
[1719661793308,2.512439,61267.0,61264.0,0.16233898]
[1719661793745,0.0763,61265.0,61264.0,0.16233898]
[1719661794214,2.164676,61265.0,61264.0,0.16233898]
[1719661794446,1.465891,61265.0,61264.0,0.16233898]
[1719661794959,1.585891,61265.0,61264.0,0.004]
[1719661795179,1.585891,61265.0,61261.0,0.002]
[1719661795180,1.735591,61265.0,61261.0,0.002]
[1719661795441,0.0763,61262.0,61261.0,0.002]
[1719661795712,1.876308,61262.0,61261.0,0.002]
[1719661795960,2.041708,61262.0,61261.0,0.002]
[1719661796186,1.965875,61262.0,61261.0,0.002]
[1719661796414,1.965875,61262.0,61256.0,0.08130346]
[1719661796651,1.750355,61261.0,61257.0,0.16233898]
[1719661796899,1.750355,61261.0,61257.0,0.1736611]
[1719661796900,0.0763,61258.0,61257.0,0.1736611]
[1719661797137,1.411155,61258.0,61257.0,0.1736611]
[1719661797371,1.511155,61258.0,61257.0,0.1736611]
[1719661798258,1.512155,61258.0,61257.0,0.1806611]
[1719661798499,1.246855,61258.0,61257.0,0.1806611]
[1719661798731,1.245855,61258.0,61257.0,0.1736611]
[1719661799574,1.245855,61258.0,61257.0,0.1766611]
[1719661799575,1.083864,61258.0,61257.0,0.1766611]
[1719661799999,0.960734,61258.0,61257.0,0.1756611]
[1719661800439,0.960734,61258.0,61257.0,0.1786611]
[1719661800861,0.960734,61258.0,61257.0,0.1736611]
[1719661801075,0.961734,61258.0,61257.0,0.1736611]
[1719661801300,0.962734,61258.0,61257.0,0.1736611]
[1719661801519,0.961734,61258.0,61257.0,0.1736611]
[1719661801991,0.962734,61258.0,61257.0,0.1736611]
[1719661802566,0.961734,61258.0,61257.0,0.1736611]
[1719661803226,0.960734,61258.0,61257.0,0.1736611]
[1719661803448,0.962734,61258.0,61257.0,0.1736611]
[1719661803874,0.963734,61258.0,61257.0,0.1736611]
[1719661805238,1.133434,61258.0,61257.0,0.01132212]
[1719661805660,0.963734,61258.0,61257.0,0.01132212]
[1719661805895,0.963734,61258.0,61257.0,0.01132487]
[1719661806120,0.963734,61258.0,61252.0,0.2297]
[1719661806338,2.010752,61257.0,61253.0,0.16233898]
[1719661806551,0.0763,61254.0,61253.0,0.16233898]
[1719661806753,0.669733,61254.0,61253.0,0.16233898]
[1719661806961,0.769733,61254.0,61253.0,0.16233898]
[1719661807608,0.647603,61254.0,61253.0,0.16233898]
[1719661808711,0.489488,61254.0,61253.0,0.16233898]
[1719661808920,0.489488,61254.0,61253.0,0.16533898]
[1719661809549,0.489488,61254.0,61253.0,0.16833898]
[1719661810536,0.489488,61254.0,61253.0,0.16533898]
[1719661810826,0.489488,61254.0,61253.0,0.16733898]
[1719661811032,0.1763,61254.0,61253.0,0.16433898]
[1719661811239,0.0763,61254.0,61253.0,0.16433898]
[1719661811441,0.896528,61254.0,61253.0,0.16433898]
[1719661811670,0.18446,61254.0,61253.0,0.17570389]
[1719661811910,1.004688,61254.0,61253.0,0.17570389]
[1719661812031,0.826788,61254.0,61253.0,0.17570389]
[1719661812687,0.704628,61254.0,61253.0,0.17570389]
[1719661812912,0.662499,61254.0,61253.0,0.17570389]
[1719661815198,0.38045189,61254.0,61253.0,0.17570389]
[1719661815454,0.0763,61254.0,61253.0,0.17570389]
[1719661816037,0.70078,61254.0,61253.0,0.17570389]
[1719661817498,0.80078,61254.0,61253.0,0.17570389]
[1719661818106,0.80070009,61254.0,61253.0,0.17570389]
[1719661818306,0.80070009,61254.0,61253.0,0.17370389]
[1719661818721,0.80370009,61254.0,61253.0,0.17370389]
[1719661818920,0.80870009,61254.0,61253.0,0.17370389]
[1719661820325,0.80070009,61254.0,61253.0,0.17370389]
[1719661820739,0.80470009,61254.0,61253.0,0.17370389]
[1719661822184,0.82670009,61254.0,61253.0,0.17370389]
[1719661823225,0.80670009,61254.0,61253.0,0.17370389]
[1719661824249,0.82670009,61254.0,61253.0,0.17370389]
[1719661825079,1.00210009,61254.0,61253.0,0.17370389]
[1719661825288,0.82670009,61254.0,61253.0,0.17370389]
[1719661826303,0.80670009,61254.0,61253.0,0.17370389]
[1719661826519,0.82670009,61254.0,61253.0,0.17370389]
[1719661829750,0.80670009,61254.0,61253.0,0.17370389]
[1719661830230,0.82670009,61254.0,61253.0,0.17370389]
[1719661830652,0.80670009,61254.0,61253.0,0.17370389]
[1719661831803,0.80670009,61254.0,61253.0,0.17070334]
[1719661832045,0.82670009,61254.0,61253.0,0.17070334]
[1719661833206,0.80670009,61254.0,61253.0,0.17070334]
[1719661833431,0.82670009,61254.0,61253.0,0.17070334]
[1719661835335,0.20222009,61254.0,61253.0,0.17070334]
[1719661836483,2.62491009,61254.0,61253.0,0.17070334]
[1719661836716,2.64491009,61254.0,61253.0,0.17070334]
[1719661836965,2.62491009,61254.0,61253.0,0.17070334]
[1719661838243,2.56869,61254.0,61253.0,0.17070334]
[1719661838469,2.62499,61254.0,61253.0,0.17070334]
[1719661839663,2.64499,61254.0,61253.0,0.17070334]
[1719661841303,2.64499,61254.0,61253.0,0.17063739]
[1719661842458,2.64499,61254.0,61253.0,0.17156139]
[1719661842693,2.64583,61254.0,61253.0,0.17156139]
[1719661845604,2.64583,61254.0,61253.0,0.40396139]
[1719661846864,2.64583,61254.0,61253.0,0.17156139]
[1719661847691,2.37541,61254.0,61253.0,0.17156139]
[1719661848493,2.35541,61254.0,61253.0,0.17156139]
[1719661848887,2.37541,61254.0,61253.0,0.17156139]
[1719661849781,2.47541,61254.0,61253.0,0.17156139]
[1719661851631,2.59183889,61254.0,61253.0,0.17156139]
[1719661852033,2.47541,61254.0,61253.0,0.17156139]
[1719661853199,2.45541,61254.0,61253.0,0.17156139]
[1719661853409,2.47534534,61254.0,61253.0,0.17156139]
[1719661853614,2.47541,61254.0,61253.0,0.17156139]
[1719661854251,2.47541,61254.0,61253.0,0.41236139]
[1719661856417,2.47541,61254.0,61253.0,0.17156139]
[1719661857281,2.37911,61254.0,61253.0,0.17156139]
[1719661857491,2.45541,61254.0,61253.0,0.17156139]
[1719661858334,2.059469,61254.0,61253.0,0.17156139]
[1719661858612,2.098728,61254.0,61253.0,0.17156139]
[1719661859287,2.098728,61254.0,61253.0,0.41236139]
[1719661859494,2.098728,61254.0,61253.0,0.59606139]
[1719661859495,1.962828,61254.0,61253.0,0.59606139]
[1719661859916,1.579065,61254.0,61253.0,0.59606139]
[1719661860329,1.555245,61254.0,61253.0,0.59606139]
[1719661860536,1.490619,61254.0,61253.0,0.59606139]
[1719661860723,0.00084,61254.0,61253.0,1.03839788]
[1719661860968,0.00084,61268.0,61259.0,0.2]
[1719661861176,0.48811044,61266.0,61260.0,0.58683898]
[1719661861389,0.0763,61261.0,61260.0,0.59657485]
[1719661861602,1.141864,61261.0,61260.0,0.59657485]
[1719661862217,1.241864,61261.0,61260.0,0.41287485]
[1719661862843,1.241864,61261.0,61260.0,0.17207485]
[1719661863059,1.247864,61261.0,61260.0,0.17307485]
[1719661863877,1.252864,61261.0,61260.0,0.17307485]
[1719661873705,0.1873,61261.0,61260.0,0.17307485]
[1719661873891,2.36557,61261.0,61260.0,0.17307485]
[1719661874105,2.46557,61261.0,61260.0,0.16333898]
[1719661874549,2.46557,61261.0,61260.0,0.17451945]
[1719661877514,2.46641,61261.0,61260.0,0.17451945]
[1719661882541,2.46641,61261.0,61260.0,0.01218047]
[1719661882946,2.46641,61261.0,61260.0,0.001]
[1719661884962,2.62874371,61261.0,61260.0,0.001]
[1719661885164,2.46641,61261.0,61260.0,0.001]
[1719661898845,2.15008734,61261.0,61260.0,0.001]
[1719661899041,2.226388,61261.0,61260.0,0.001]
[1719661901092,2.326388,61261.0,61260.0,0.001]
[1719661903408,2.326388,61261.0,61260.0,0.1884]
[1719661903827,2.326388,61261.0,61260.0,0.19957832]
[1719661905180,2.326388,61261.0,61260.0,0.01217832]
[1719661905388,2.326388,61261.0,61260.0,0.001]
[1719661905595,2.326388,61261.0,61260.0,0.01217832]
[1719661908472,0.1763,61261.0,61260.0,0.01217832]
[1719661908704,0.0763,61261.0,61260.0,0.01217832]
[1719661908930,2.326388,61261.0,61260.0,0.01217832]
[1719661909138,0.1763,61261.0,61260.0,0.01217832]
[1719661909392,2.326388,61261.0,61260.0,0.01217832]
[1719661909574,2.326388,61261.0,61260.0,0.001924]
[1719661909708,2.347228,61261.0,61260.0,0.01310232]
[1719661910642,2.327228,61261.0,61260.0,0.01310232]
[1719661911067,2.327228,61261.0,61260.0,0.01302428]
[1719661911515,2.347228,61261.0,61260.0,0.01302428]
[1719661911726,2.327228,61261.0,61260.0,0.01302428]
[1719661912141,2.347228,61261.0,61260.0,0.01302428]
[1719661913484,2.327228,61261.0,61256.0,0.2267]
[1719661913667,0.0963,61257.0,61256.0,0.2267]
[1719661913907,2.246388,61257.0,61256.0,0.2267]
[1719661914190,2.346388,61257.0,61256.0,0.2267]
[1719661916089,2.326388,61257.0,61256.0,0.2267]
[1719661917576,2.326388,61257.0,61256.0,0.415]
[1719661918788,2.329388,61257.0,61256.0,0.415]
[1719661919020,2.331388,61257.0,61256.0,0.415]
[1719661922998,2.255088,61257.0,61256.0,0.415]
[1719661923212,2.331388,61257.0,61256.0,0.415]
[1719661924073,2.255088,61257.0,61256.0,0.415]
[1719661924287,1.998341,61257.0,61256.0,0.415]
[1719661924501,1.998341,61257.0,61256.0,0.40781126]
[1719661924938,1.998341,61257.0,61256.0,0.4204069]
[1719661925798,1.922041,61257.0,61256.0,0.4204069]
[1719661926010,1.998341,61257.0,61256.0,0.4204069]
[1719661931034,1.9983001,61257.0,61256.0,0.4204069]
[1719661932106,1.9983001,61257.0,61256.0,0.01259564]
[1719661932321,1.9983001,61257.0,61256.0,0.23969564]
[1719661932510,1.9983001,61257.0,61256.0,0.2271]
[1719661936497,1.9983001,61257.0,61256.0,0.23969656]
[1719661939402,2.0183001,61257.0,61256.0,0.23969656]
[1719661939826,1.9983001,61257.0,61256.0,0.23969656]
[1719661941072,2.0183001,61257.0,61256.0,0.23969656]
[1719661944069,1.9983001,61257.0,61256.0,0.2271]
[1719661944311,2.0183001,61257.0,61256.0,0.2271]
[1719661944537,1.9983001,61257.0,61256.0,0.2271]
[1719661957277,2.0183001,61257.0,61256.0,0.2271]
[1719661959075,2.0183001,61257.0,61256.0,0.22704229]
[1719661959972,2.3513471,61257.0,61256.0,0.22704229]
[1719661960178,0.2012591,61257.0,61256.0,0.22704229]
[1719661960841,2.3313471,61257.0,61256.0,0.22704229]
[1719661961470,2.3513471,61257.0,61256.0,0.22704229]
[1719661962518,2.3513471,61257.0,61254.0,0.242024]
[1719661962728,2.150088,61256.0,61255.0,0.16233898]
[1719661962932,2.150088,61256.0,61255.0,0.17494695]
[1719661963117,2.250088,61256.0,61255.0,0.17494695]
[1719661964602,2.252088,61256.0,61255.0,0.17494695]
[1719661965430,1.95172,61256.0,61255.0,0.17494695]
[1719661965843,1.95272,61256.0,61255.0,0.17494695]
[1719661969762,1.95272,61256.0,61255.0,0.17914959]
[1719661972895,1.95272,61256.0,61255.0,0.18007359]
[1719661977490,1.95272,61256.0,61255.0,0.18002266]
[1719661981832,1.95272,61256.0,61255.0,0.60362266]
[1719661982333,1.95272,61256.0,61255.0,0.41572266]
[1719661986505,1.95272,61256.0,61255.0,0.18002266]
[1719661986730,1.95272,61256.0,61255.0,0.41572266]
[1719661991185,2.02902,61256.0,61255.0,0.41565039]
[1719661995195,2.02902,61256.0,61255.0,0.40635039]
[1719661997570,2.02902,61256.0,61255.0,0.17995039]
[1719661999470,0.1793,61256.0,61255.0,0.17995039]
[1719661999681,1.92902,61256.0,61255.0,0.17995039]
[1719661999901,2.02902,61256.0,61255.0,0.17995039]
[1719662004968,2.02902,61256.0,61255.0,0.17990946]
[1719662006087,2.02986,61256.0,61255.0,0.17990946]
[1719662009382,1.95356,61256.0,61255.0,0.17990946]
[1719662009603,2.02986,61256.0,61255.0,0.17990946]
[1719662010046,2.16016701,61256.0,61255.0,0.17990946]
[1719662010261,2.02986,61256.0,61255.0,0.17990946]
[1719662012356,2.02986,61256.0,61255.0,0.41150946]
[1719662014459,2.04986,61256.0,61255.0,0.41150946]
[1719662014665,2.02986,61256.0,61255.0,0.41150946]
[1719662015965,2.04986,61256.0,61255.0,0.41150946]
[1719662016197,2.02986,61256.0,61255.0,0.41150946]
[1719662017309,2.02986,61256.0,61255.0,0.41146608]
[1719662018465,2.02986,61256.0,61255.0,0.17986608]
[1719662018466,2.21219371,61256.0,61255.0,0.17986608]
[1719662019278,2.19219371,61256.0,61255.0,0.17986608]
[1719662019488,2.21219371,61256.0,61255.0,0.41146608]
[1719662021159,2.19219371,61256.0,61255.0,0.41146608]
[1719662022012,2.11589371,61256.0,61255.0,0.41146608]
[1719662022222,2.19219371,61256.0,61255.0,0.41146608]
[1719662022647,2.02986,61256.0,61255.0,0.41146608]
[1719662023489,2.05281038,61256.0,61255.0,0.41146608]
[1719662024330,0.20309038,61256.0,61255.0,0.41146608]
[1719662024548,2.05281038,61256.0,61255.0,0.41146608]
[1719662026008,2.05281038,61256.0,61253.0,0.000924]
[1719662026215,1.94972,61255.0,61251.0,0.195]
[1719662026391,0.0763,61253.0,61252.0,0.16233898]
[1719662026604,2.02602,61253.0,61252.0,0.16233898]
[1719662026813,1.92602,61253.0,61252.0,0.16233898]
[1719662027018,2.02602,61253.0,61252.0,0.16233898]
[1719662028475,2.02602,61253.0,61252.0,0.16433898]
[1719662028683,2.02602,61253.0,61252.0,0.16733898]
[1719662029331,2.02602,61253.0,61252.0,0.39533898]
[1719662029742,2.02602,61253.0,61252.0,0.39333898]
[1719662029949,2.02602,61253.0,61252.0,0.39033898]
[1719662030223,2.03102,61253.0,61252.0,0.39033898]
[1719662030632,2.03102,61253.0,61252.0,0.16233898]
[1719662031598,2.19335371,61253.0,61252.0,0.16233898]
[1719662032057,2.03102,61253.0,61252.0,0.16233898]
[1719662032523,2.03102,61253.0,61252.0,0.17666178]
[1719662036245,0.1813,61253.0,61252.0,0.17666178]
[1719662036476,2.03102,61253.0,61252.0,0.17666178]
[1719662037655,2.03102,61253.0,61252.0,0.17758578]
[1719662037656,2.05102,61253.0,61252.0,0.17758578]
[1719662037878,2.03102,61253.0,61252.0,0.17758578]
[1719662038072,2.21335371,61253.0,61252.0,0.17758578]
[1719662039083,2.19335371,61253.0,61252.0,0.17752415]
[1719662039323,2.19335371,61253.0,61252.0,0.16320135]
[1719662041405,2.19335371,61253.0,61252.0,0.17752415]
[1719662041825,2.03102,61253.0,61252.0,0.17752415]
[1719662046818,1.814399,61253.0,61252.0,0.17752415]
[1719662047902,1.814399,61253.0,61252.0,0.16320135]
[1719662048956,1.914399,61253.0,61252.0,0.16320135]
[1719662057041,0.1763,61253.0,61252.0,0.16320135]
[1719662057250,0.0763,61253.0,61252.0,0.16320135]
[1719662057477,0.0763,61253.0,61252.0,0.17752415]
[1719662057684,1.814399,61253.0,61252.0,0.16320135]
[1719662057889,1.914399,61253.0,61252.0,0.16320135]
[1719662059237,1.587966,61253.0,61252.0,0.16320135]
[1719662059476,1.664266,61253.0,61252.0,0.16320135]
[1719662069986,1.684266,61253.0,61252.0,0.16320135]
[1719662070397,1.685106,61253.0,61252.0,0.16320135]
[1719662071703,1.665106,61253.0,61252.0,0.16320135]
[1719662073018,1.665106,61253.0,61252.0,0.16315415]
[1719662079234,1.665106,61253.0,61252.0,0.16315415]
[1719662079437,1.685106,61253.0,61252.0,0.16315415]
[1719662083361,1.74102554,61253.0,61252.0,0.16315415]
[1719662083573,1.685106,61253.0,61252.0,0.16315415]
[1719662087796,1.685106,61253.0,61252.0,0.16308811]
[1719662096083,1.68502659,61253.0,61252.0,0.16308811]
[1719662097314,1.93202659,61253.0,61252.0,0.16308811]
[1719662097744,1.93202659,61253.0,61252.0,0.17838999]
[1719662097906,1.68502659,61253.0,61252.0,0.17838999]
[1719662098102,1.68502659,61253.0,61252.0,0.16308811]
[1719662098346,1.68502659,61253.0,61252.0,0.40078811]
[1719662098548,1.68502659,61253.0,61252.0,0.41608998]
[1719662100319,0.1942,61252.0,61250.0,0.023]
[1719662100523,0.02,61248.0,61245.0,0.2004]
[1719662100721,0.0763,61246.0,61245.0,0.2004]
[1719662100964,1.664266,61246.0,61245.0,0.2004]
[1719662101173,0.02,61242.0,61241.0,0.000924]
[1719662101399,0.2,61241.0,61234.0,0.00626305]
[1719662101610,0.5375,61235.0,61234.0,0.00626305]
[1719662101815,0.5375,61235.0,61233.0,0.0497013]
[1719662101816,0.02,61232.0,61230.0,0.009218]
[1719662102038,1.564266,61231.0,61230.0,0.009218]
[1719662102245,1.664266,61231.0,61230.0,0.009218]